[Event "MČR družstev mladších žáků 2024"]
[Site "Harrachov, Czech Republic"]
[Date "2024.06.16"]
[Round "9.11"]
[White "Melicharova Veronika"]
[Black "Lackova Lucie"]
[Result "0-1"]
[TimeControl "25+10"]
[WhiteFideId "23749695"]
[BlackFideId "23731800"]
[WhiteElo "1003"]
[BlackElo "1601"]

1. e4 {[%clk 00:25:18]} {[%emt 00:00:01]} c6 {[%clk 00:25:19]} {[%emt
00:00:02]} 2. Nc3 {[%clk 00:25:24]} {[%emt 00:00:03]} d5 {[%clk 00:25:28]}
{[%emt 00:00:01]} 3. exd5 {[%clk 00:25:25]} {[%emt 00:00:09]} cxd5 {[%clk
00:25:37]} {[%emt 00:00:01]} 4. d4 {[%clk 00:25:32]} {[%emt 00:00:02]} Nf6
{[%clk 00:25:22]} {[%emt 00:00:26]} 5. Nf3 {[%clk 00:25:37]} {[%emt 00:00:05]}
Bg4 {[%clk 00:25:23]} {[%emt 00:00:10]} 6. Be2 {[%clk 00:25:08]} {[%emt
00:00:39]} e6 {[%clk 00:25:20]} {[%emt 00:00:13]} 7. h3 {[%clk 00:24:42]}
{[%emt 00:00:35]} Bh5 {[%clk 00:25:27]} {[%emt 00:00:03]} 8. Bg5 {[%clk
00:23:17]} {[%emt 00:01:35]} Be7 {[%clk 00:25:22]} {[%emt 00:00:16]} 9. O-O
{[%clk 00:22:42]} {[%emt 00:00:45]} Nc6 {[%clk 00:25:19]} {[%emt 00:00:13]} 10.
Re1 {[%clk 00:20:09]} {[%emt 00:02:42]} O-O {[%clk 00:25:17]} {[%emt 00:00:13]}
11. Nh4 {[%clk 00:15:04]} {[%emt 00:05:15]} Bxe2 {[%clk 00:24:33]} {[%emt
00:00:55]} 12. Nxe2 {[%clk 00:14:20]} {[%emt 00:00:53]} Ne4 {[%clk 00:23:54]}
{[%emt 00:00:49]} 13. Bxe7 {[%clk 00:13:47]} {[%emt 00:00:44]} Qxe7 {[%clk
00:23:57]} {[%emt 00:00:07]} 14. Nf3 {[%clk 00:13:40]} {[%emt 00:00:17]} Rac8
{[%clk 00:23:38]} {[%emt 00:00:29]} 15. Rc1 {[%clk 00:12:07]} {[%emt 00:01:42]}
Na5 {[%clk 00:18:49]} {[%emt 00:04:59]} 16. c3 {[%clk 00:08:31]} {[%emt
00:03:46]} Nc4 {[%clk 00:18:34]} {[%emt 00:00:25]} 17. Qc2 {[%clk 00:08:30]}
{[%emt 00:00:11]} Qd7 {[%clk 00:17:22]} {[%emt 00:01:22]} 18. Ng3 {[%clk
00:07:11]} {[%emt 00:01:29]} Nxg3 19. fxg3 {[%clk 00:07:17]} h6 {[%clk
00:14:08]} {[%emt 00:03:10]} 20. Ne5 {[%clk 00:06:36]} {[%emt 00:00:51]} Nxe5
{[%clk 00:13:28]} {[%emt 00:00:51]} 21. Rxe5 {[%clk 00:06:32]} {[%emt
00:00:13]} b5 {[%clk 00:13:02]} {[%emt 00:00:36]} 22. Kh2 {[%clk 00:05:53]}
{[%emt 00:00:49]} Rc4 {[%clk 00:11:43]} {[%emt 00:01:28]} 23. Qb3 {[%clk
00:03:56]} {[%emt 00:02:08]} b4 {[%clk 00:08:47]} {[%emt 00:03:07]} 24. Re3
{[%clk 00:03:18]} {[%emt 00:00:47]} a5 {[%clk 00:08:03]} {[%emt 00:00:55]} 25.
a3 {[%clk 00:03:18]} {[%emt 00:00:10]} bxa3 {[%clk 00:05:01]} {[%emt 00:03:11]}
26. Qxa3 {[%clk 00:03:14]} {[%emt 00:00:13]} Rb8 {[%clk 00:04:58]} {[%emt
00:00:14]} 27. Rb1 {[%clk 00:02:04]} {[%emt 00:01:21]} Ra4 {[%clk 00:04:24]}
{[%emt 00:00:43]} 28. Qc5 {[%clk 00:01:47]} {[%emt 00:00:17]} Rb5 {[%clk
00:04:24]} {[%emt 00:00:21]} 29. Qxb5 {[%clk 00:01:14]} {[%emt 00:00:43]} Qxb5
{[%clk 00:04:32]} {[%emt 00:00:02]} 30. Ree1 {[%clk 00:00:52]} {[%emt
00:00:32]} Ra2 {[%clk 00:04:28]} {[%emt 00:00:14]} 31. b3 {[%clk 00:00:14]}
{[%emt 00:00:48]} Qd3 {[%clk 00:03:56]} {[%emt 00:00:38]} 32. Rec1 {[%clk
00:00:22]} {[%emt 00:00:06]} Qd2 {[%clk 00:03:56]} {[%emt 00:00:08]} 33. Rg1
{[%clk 00:00:22]} {[%emt 00:00:11]} Qxc3 {[%clk 00:04:04]} {[%emt 00:00:04]} 34.
Rgd1 {[%clk 00:00:15]} {[%emt 00:00:16]} Qc2 {[%clk 00:03:34]} {[%emt
00:00:40]} 35. Rg1 {[%clk 00:00:21]} {[%emt 00:00:04]} Rb2 {[%clk 00:03:40]}
{[%emt 00:00:05]} 36. Ra1 {[%clk 00:00:26]} {[%emt 00:00:05]} Rxb3 {[%clk
00:02:50]} {[%emt 00:01:00]} 37. Rxa5 {[%clk 00:00:26]} {[%emt 00:00:10]} Qd3
{[%clk 00:02:52]} {[%emt 00:00:07]} 38. Ra4 {[%clk 00:00:13]} {[%emt 00:00:23]}
Qxg3+ {[%clk 00:02:43]} {[%emt 00:00:19]} 39. Kh1 {[%clk 00:00:20]} {[%emt
00:00:02]} Qh4 {[%clk 00:02:23]} {[%emt 00:00:31]} 0-1



[ePGN "0.1;DGT LiveChess/2.2.6"]

[Event "MČR družstev mladších žáků 2024"]
[Site "Harrachov, Czech Republic"]
[Date "2024.06.16"]
[Round "9.13"]
[White "Velim Vojtech"]
[Black "Vanek Martin"]
[Result "1/2-1/2"]
[TimeControl "25+10"]
[WhiteFideId "23749407"]
[BlackFideId "23769238"]
[WhiteElo "1814"]
[BlackElo "1580"]

1. d4 {[%clk 00:25:18]} {[%emt 00:00:02]} d5 {[%clk 00:25:19]} {[%emt
00:00:02]} 2. c4 {[%clk 00:25:27]} e6 {[%clk 00:25:27]} {[%emt 00:00:02]} 3.
Nc3 {[%clk 00:25:36]} {[%emt 00:00:01]} Nf6 {[%clk 00:25:36]} {[%emt 00:00:02]}
4. Bg5 {[%clk 00:25:45]} {[%emt 00:00:01]} Be7 {[%clk 00:25:44]} {[%emt
00:00:02]} 5. Nf3 {[%clk 00:25:53]} {[%emt 00:00:02]} O-O {[%clk 00:25:51]}
{[%emt 00:00:03]} 6. e3 {[%clk 00:26:02]} h6 {[%clk 00:25:58]} {[%emt
00:00:04]} 7. Bxf6 {[%clk 00:26:09]} {[%emt 00:00:03]} Bxf6 {[%clk 00:26:05]}
{[%emt 00:00:03]} 8. Bd3 {[%clk 00:26:17]} {[%emt 00:00:01]} b6 {[%clk
00:25:59]} {[%emt 00:00:17]} 9. cxd5 {[%clk 00:26:26]} {[%emt 00:00:02]} exd5
{[%clk 00:26:06]} {[%emt 00:00:02]} 10. Qb3 {[%clk 00:26:22]} {[%emt 00:00:14]}
Be6 {[%clk 00:25:44]} {[%emt 00:00:32]} 11. O-O {[%clk 00:25:54]} {[%emt
00:00:37]} c5 {[%clk 00:25:23]} {[%emt 00:00:31]} 12. Qc2 {[%clk 00:26:00]}
{[%emt 00:00:04]} Nc6 {[%clk 00:24:44]} {[%emt 00:00:49]} 13. Rad1 {[%clk
00:25:58]} {[%emt 00:00:13]} Nb4 {[%clk 00:24:23]} {[%emt 00:00:31]} 14. Qb1
{[%clk 00:26:03]} {[%emt 00:00:05]} Qd6 {[%clk 00:23:06]} {[%emt 00:01:28]} 15.
a3 {[%clk 00:25:54]} {[%emt 00:00:19]} Nxd3 {[%clk 00:22:43]} {[%emt 00:00:32]}
16. Qxd3 {[%clk 00:26:01]} {[%emt 00:00:03]} Rfd8 {[%clk 00:22:27]} {[%emt
00:00:26]} 17. Rfe1 {[%clk 00:25:59]} {[%emt 00:00:12]} cxd4 {[%clk 00:20:33]}
{[%emt 00:02:04]} 18. Nxd4 {[%clk 00:26:06]} {[%emt 00:00:02]} Bxd4 {[%clk
00:20:17]} {[%emt 00:00:26]} 19. Qxd4 {[%clk 00:26:14]} {[%emt 00:00:02]} Qc5
{[%clk 00:19:15]} {[%emt 00:01:11]} 20. h3 {[%clk 00:25:18]} {[%emt 00:01:06]}
Rac8 {[%clk 00:18:40]} {[%emt 00:00:46]} 21. Rd2 {[%clk 00:24:58]} {[%emt
00:00:30]} Rc6 {[%clk 00:16:44]} {[%emt 00:02:07]} 22. Red1 {[%clk 00:24:34]}
{[%emt 00:00:34]} Rcd6 {[%clk 00:16:36]} {[%emt 00:00:18]} 23. Ne2 {[%clk
00:21:18]} {[%emt 00:03:26]} Qc6 {[%clk 00:13:51]} {[%emt 00:02:55]} 24. Nf4
{[%clk 00:20:58]} {[%emt 00:00:29]} Qc5 {[%clk 00:12:42]} {[%emt 00:01:20]} 25.
e4 {[%clk 00:19:14]} {[%emt 00:01:53]} g5 {[%clk 00:11:28]} {[%emt 00:01:25]}
26. Nh5 {[%clk 00:18:32]} {[%emt 00:00:52]} Qxd4 {[%clk 00:11:27]} {[%emt
00:00:11]} 27. Rxd4 {[%clk 00:18:40]} {[%emt 00:00:02]} Kf8 {[%clk 00:10:19]}
{[%emt 00:01:19]} 28. e5 {[%clk 00:15:57]} {[%emt 00:02:52]} Rc6 {[%clk
00:10:03]} {[%emt 00:00:26]} 29. Nf6 {[%clk 00:15:45]} {[%emt 00:00:23]} Rc2
{[%clk 00:09:26]} {[%emt 00:00:46]} 30. b4 {[%clk 00:15:29]} {[%emt 00:00:26]}
Ra2 {[%clk 00:09:17]} {[%emt 00:00:18]} 31. R1d3 {[%clk 00:15:19]} {[%emt
00:00:21]} Ra1+ {[%clk 00:09:18]} {[%emt 00:00:10]} 32. Kh2 {[%clk 00:15:27]}
{[%emt 00:00:02]} Kg7 {[%clk 00:08:31]} {[%emt 00:00:56]} 33. Re3 {[%clk
00:14:17]} {[%emt 00:01:21]} Kg6 {[%clk 00:08:08]} {[%emt 00:00:33]} 34. h4
{[%clk 00:11:55]} {[%emt 00:02:32]} Ra2 {[%clk 00:06:53]} {[%emt 00:01:25]} 35.
h5+ {[%clk 00:07:51]} {[%emt 00:04:13]} Kg7 {[%clk 00:06:57]} {[%emt 00:00:07]}
36. Kg3 {[%clk 00:07:37]} {[%emt 00:00:23]} 1/2-1/2



[ePGN "0.1;DGT LiveChess/2.2.6"]

[Event "MČR družstev mladších žáků 2024"]
[Site "Harrachov, Czech Republic"]
[Date "2024.06.16"]
[Round "9.14"]
[White "Bilek Filip"]
[Black "Kala Jakub"]
[Result "0-1"]
[TimeControl "25+10"]
[WhiteFideId "23763493"]
[BlackFideId "23753897"]
[WhiteElo "1249"]
[BlackElo "1657"]

1. e4 {[%clk 00:25:17]} {[%emt 00:00:02]} c6 {[%clk 00:25:19]} {[%emt
00:00:02]} 2. d4 {[%clk 00:25:25]} {[%emt 00:00:02]} d5 {[%clk 00:25:28]}
{[%emt 00:00:01]} 3. e5 {[%clk 00:25:30]} {[%emt 00:00:06]} Bf5 {[%clk
00:25:37]} {[%emt 00:00:01]} 4. Nf3 {[%clk 00:25:38]} {[%emt 00:00:02]} e6
{[%clk 00:25:43]} {[%emt 00:00:04]} 5. Be2 {[%clk 00:25:42]} {[%emt 00:00:05]}
c5 {[%clk 00:25:12]} {[%emt 00:00:42]} 6. Be3 {[%clk 00:25:48]} {[%emt
00:00:04]} Nd7 {[%clk 00:24:30]} {[%emt 00:00:52]} 7. c3 {[%clk 00:25:36]}
{[%emt 00:00:21]} Qc7 {[%clk 00:23:23]} {[%emt 00:01:17]} 8. Nbd2 {[%clk
00:25:28]} {[%emt 00:00:19]} Ne7 {[%clk 00:23:10]} {[%emt 00:00:23]} 9. Rc1
{[%clk 00:25:27]} {[%emt 00:00:10]} c4 {[%clk 00:22:09]} {[%emt 00:01:13]} 10.
O-O {[%clk 00:24:49]} {[%emt 00:00:48]} Nc6 {[%clk 00:21:45]} {[%emt 00:00:34]}
11. b3 {[%clk 00:24:31]} {[%emt 00:00:28]} Ba3 {[%clk 00:18:29]} {[%emt
00:03:26]} 12. bxc4 {[%clk 00:21:03]} {[%emt 00:03:38]} Bxc1 {[%clk 00:16:45]}
{[%emt 00:01:55]} 13. Qxc1 {[%clk 00:20:44]} {[%emt 00:00:28]} O-O {[%clk
00:15:48]} {[%emt 00:01:06]} 14. h3 {[%clk 00:19:50]} {[%emt 00:01:04]} Rfc8
{[%clk 00:14:03]} {[%emt 00:01:55]} 15. cxd5 {[%clk 00:19:14]} {[%emt
00:00:47]} exd5 {[%clk 00:14:03]} {[%emt 00:00:11]} 16. Nb3 {[%clk 00:18:53]}
{[%emt 00:00:31]} Na5 {[%clk 00:13:01]} {[%emt 00:01:12]} 17. Bf4 {[%clk
00:18:36]} {[%emt 00:00:27]} Nxb3 {[%clk 00:12:16]} {[%emt 00:00:54]} 18. axb3
{[%clk 00:18:39]} {[%emt 00:00:06]} Qxc3 {[%clk 00:12:00]} {[%emt 00:00:27]} 19.
Qa3 {[%clk 00:18:09]} {[%emt 00:00:36]} Bc2 {[%clk 00:09:17]} {[%emt 00:02:58]}
20. Rc1 {[%clk 00:17:47]} {[%emt 00:00:29]} Qxb3 {[%clk 00:08:35]} {[%emt
00:00:53]} 21. Qxb3 {[%clk 00:17:44]} {[%emt 00:00:13]} Bxb3 {[%clk 00:08:43]}
{[%emt 00:00:02]} 22. Rb1 {[%clk 00:17:38]} {[%emt 00:00:16]} Bc4 {[%clk
00:07:58]} {[%emt 00:00:55]} 23. Bf1 {[%clk 00:16:56]} {[%emt 00:00:51]} b5
{[%clk 00:06:59]} {[%emt 00:01:10]} 24. Nd2 {[%clk 00:16:31]} {[%emt 00:00:35]}
Nb6 {[%clk 00:06:00]} {[%emt 00:01:09]} 25. Nxc4 {[%clk 00:16:09]} {[%emt
00:00:32]} bxc4 {[%clk 00:05:55]} {[%emt 00:00:15]} 26. Rc1 {[%clk 00:15:15]}
{[%emt 00:01:04]} a5 {[%clk 00:05:29]} {[%emt 00:00:37]} 27. Bd2 {[%clk
00:15:13]} {[%emt 00:00:08]} a4 {[%clk 00:05:15]} {[%emt 00:00:27]} 28. Bb4
{[%clk 00:15:12]} {[%emt 00:00:08]} a3 {[%clk 00:05:04]} {[%emt 00:00:23]} 29.
Ra1 {[%clk 00:15:17]} {[%emt 00:00:05]} a2 {[%clk 00:04:55]} {[%emt 00:00:20]}
30. Be2 {[%clk 00:15:21]} {[%emt 00:00:06]} h6 {[%clk 00:04:50]} {[%emt
00:00:16]} 31. Bd1 {[%clk 00:15:27]} {[%emt 00:00:04]} c3 {[%clk 00:04:06]}
{[%emt 00:00:54]} 32. Bc2 {[%clk 00:15:33]} {[%emt 00:00:03]} Rc4 {[%clk
00:02:36]} {[%emt 00:01:41]} 33. Bc5 {[%clk 00:15:30]} {[%emt 00:00:12]} Nd7
{[%clk 00:02:19]} {[%emt 00:00:26]} 34. Bd6 {[%clk 00:15:17]} {[%emt 00:00:23]}
Rxd4 {[%clk 00:02:10]} {[%emt 00:00:21]} 35. e6 {[%clk 00:14:06]} {[%emt
00:01:21]} fxe6 {[%clk 00:02:04]} {[%emt 00:00:16]} 36. g3 {[%clk 00:13:52]}
{[%emt 00:00:24]} Rd2 {[%clk 00:01:41]} {[%emt 00:00:34]} 37. Bb3 {[%clk
00:13:36]} {[%emt 00:00:23]} c2 {[%clk 00:01:36]} {[%emt 00:00:17]} 38. Bxc2
{[%clk 00:13:20]} {[%emt 00:00:26]} Rxc2 {[%clk 00:01:40]} {[%emt 00:00:05]} 39.
Bf4 {[%clk 00:13:26]} {[%emt 00:00:04]} Rb2 {[%clk 00:01:38]} {[%emt 00:00:14]}
40. Rxa2 {[%clk 00:12:58]} {[%emt 00:00:38]} Raxa2 {[%clk 00:01:40]} {[%emt
00:00:07]} 41. Be3 {[%clk 00:13:07]} {[%emt 00:00:02]} e5 {[%clk 00:01:44]}
{[%emt 00:00:06]} 42. f4 {[%clk 00:13:01]} {[%emt 00:00:16]} Rb1+ {[%clk
00:01:50]} {[%emt 00:00:04]} 43. Bc1 {[%clk 00:13:08]} {[%emt 00:00:03]} Rxc1#
{[%clk 00:01:58]} {[%emt 00:00:01]} 0-1



[ePGN "0.1;DGT LiveChess/2.2.6"]

[Event "MČR družstev mladších žáků 2024"]
[Site "Harrachov, Czech Republic"]
[Date "2024.06.16"]
[Round "9.15"]
[White "Levchenko Alisa"]
[Black "Najdkova Laura"]
[Result "1-0"]
[TimeControl "25+10"]
[WhiteFideId "23760311"]
[BlackFideId "23751290"]
[WhiteElo "1302"]
[BlackElo "1337"]

1. d4 {[%clk 00:25:18]} {[%emt 00:00:02]} d5 {[%clk 00:25:20]} 2. c4 {[%clk
00:25:26]} {[%emt 00:00:02]} e6 {[%clk 00:25:25]} {[%emt 00:00:05]} 3. Nf3
{[%clk 00:25:32]} {[%emt 00:00:03]} Nf6 {[%clk 00:25:34]} 4. g3 {[%clk
00:25:33]} {[%emt 00:00:10]} Be7 {[%clk 00:25:36]} {[%emt 00:00:08]} 5. Bg2
{[%clk 00:25:40]} {[%emt 00:00:02]} Nbd7 {[%clk 00:25:15]} {[%emt 00:00:31]} 6.
O-O {[%clk 00:25:28]} {[%emt 00:00:22]} c5 {[%clk 00:25:12]} {[%emt 00:00:13]}
7. cxd5 {[%clk 00:24:46]} {[%emt 00:00:52]} Nxd5 {[%clk 00:25:11]} {[%emt
00:00:11]} 8. Nc3 {[%clk 00:23:57]} {[%emt 00:00:59]} Nxc3 {[%clk 00:23:47]}
{[%emt 00:01:34]} 9. bxc3 {[%clk 00:24:03]} {[%emt 00:00:04]} cxd4 {[%clk
00:23:42]} {[%emt 00:00:15]} 10. cxd4 {[%clk 00:24:10]} {[%emt 00:00:02]} Bf6
{[%clk 00:23:13]} {[%emt 00:00:39]} 11. Ba3 {[%clk 00:23:47]} {[%emt 00:00:33]}
Qa5 {[%clk 00:22:33]} {[%emt 00:00:47]} 12. Qb3 {[%clk 00:22:48]} {[%emt
00:01:10]} Nb6 {[%clk 00:19:55]} {[%emt 00:02:50]} 13. Rac1 {[%clk 00:20:20]}
{[%emt 00:02:37]} Qd5 {[%clk 00:19:22]} {[%emt 00:00:41]} 14. e3 {[%clk
00:19:03]} {[%emt 00:01:29]} Qxb3 {[%clk 00:18:52]} {[%emt 00:00:40]} 15. axb3
{[%clk 00:19:11]} {[%emt 00:00:02]} Nd7 {[%clk 00:16:51]} {[%emt 00:02:12]} 16.
Rc7 {[%clk 00:17:56]} {[%emt 00:01:22]} Rb8 {[%clk 00:15:08]} {[%emt 00:01:55]}
17. Bd6 {[%clk 00:16:13]} {[%emt 00:01:52]} Nb6 {[%clk 00:11:28]} {[%emt
00:03:51]} 18. Rfc1 {[%clk 00:14:07]} {[%emt 00:02:15]} Bd8 {[%clk 00:10:31]}
{[%emt 00:01:08]} 19. Rxf7 {[%clk 00:13:08]} {[%emt 00:01:09]} Kxf7 {[%clk
00:10:02]} {[%emt 00:00:38]} 20. Bxb8 {[%clk 00:13:16]} {[%emt 00:00:03]} a6
{[%clk 00:09:59]} {[%emt 00:00:14]} 21. Ne5+ {[%emt 00:01:10]} Ke7 {[%emt
00:00:45]} 22. Bc7 {[%emt 00:01:22]} Kf6 {[%clk 00:07:38]} {[%emt 00:00:22]} 23.
Bxd8+ {[%clk 00:12:06]} {[%emt 00:00:40]} Rxd8 {[%clk 00:07:44]} {[%emt
00:00:03]} 24. Rc7 {[%clk 00:11:40]} {[%emt 00:00:37]} Nd5 {[%clk 00:06:33]}
{[%emt 00:01:21]} 25. Rf7+ {[%clk 00:11:20]} {[%emt 00:00:29]} Kg5 {[%clk
00:06:26]} {[%emt 00:00:17]} 26. Rxg7+ {[%clk 00:11:19]} {[%emt 00:00:12]} Kh6
{[%clk 00:06:27]} {[%emt 00:00:10]} 27. Rxb7 {[%clk 00:11:03]} {[%emt
00:00:26]} Bxb7 {[%clk 00:06:21]} {[%emt 00:00:16]} 28. Nf7+ {[%clk 00:11:11]}
{[%emt 00:00:01]} Kg7 {[%clk 00:06:21]} {[%emt 00:00:10]} 29. Nxd8 {[%clk
00:11:19]} {[%emt 00:00:02]} Bc8 {[%clk 00:06:29]} {[%emt 00:00:02]} 30. Bh3
{[%clk 00:10:54]} {[%emt 00:00:34]} Kf6 {[%clk 00:06:30]} {[%emt 00:00:09]} 31.
Nc6 {[%clk 00:10:32]} {[%emt 00:00:32]} Bd7 {[%clk 00:06:07]} {[%emt 00:00:34]}
32. Na5 {[%clk 00:10:19]} {[%emt 00:00:22]} Nb4 {[%clk 00:05:43]} {[%emt
00:00:34]} 33. Kf1 {[%clk 00:09:50]} {[%emt 00:00:39]} Bb5+ {[%clk 00:05:13]}
{[%emt 00:00:40]} 34. Ke1 {[%clk 00:09:49]} {[%emt 00:00:10]} e5 {[%clk
00:05:06]} {[%emt 00:00:18]} 35. dxe5+ {[%clk 00:09:48]} {[%emt 00:00:11]} Kxe5
{[%clk 00:05:15]} {[%emt 00:00:01]} 36. Bg2 {[%clk 00:09:17]} {[%emt 00:00:40]}
Kf5 {[%clk 00:05:22]} {[%emt 00:00:04]} 37. Bf3 {[%clk 00:09:24]} {[%emt
00:00:03]} Nd3+ {[%clk 00:05:21]} {[%emt 00:00:12]} 38. Kf1 {[%clk 00:08:07]}
{[%emt 00:01:11]} Nf4+ {[%clk 00:04:39]} {[%emt 00:01:07]} 39. Kg1 {[%clk
00:07:59]} {[%emt 00:00:18]} Nh3+ {[%clk 00:04:15]} {[%emt 00:00:35]} 40. Kg2
{[%clk 00:07:40]} {[%emt 00:00:29]} Ng5 {[%clk 00:04:21]} {[%emt 00:00:04]} 41.
Bc6 {[%clk 00:07:15]} {[%emt 00:00:34]} Bxc6+ {[%clk 00:03:54]} {[%emt
00:00:37]} 42. Nxc6 {[%clk 00:07:23]} {[%emt 00:00:02]} Ne4 {[%clk 00:03:58]}
{[%emt 00:00:06]} 43. b4 {[%clk 00:07:11]} {[%emt 00:00:22]} Nd6 {[%emt
00:00:35]} 44. Nb8 {[%clk 00:07:12]} {[%emt 00:00:07]} a5 {[%clk 00:03:28]}
{[%emt 00:00:17]} 45. bxa5 {[%clk 00:07:20]} {[%emt 00:00:02]} Nb7 {[%clk
00:03:38]} 46. a6 {[%clk 00:07:28]} {[%emt 00:00:03]} 1-0



[ePGN "0.1;DGT LiveChess/2.2.6"]